[Event "Titled Tuesday Blitz January 03 Late 2023"]
[White "Zeynalli, Rashad"]
[Black "Kalogeris, Ioannis"]
[WhiteFideId "13403320"]
[BlackFideId "4239563"]
[WhiteElo "2200"]
[BlackElo "2423"]
[Result "0-1"]
[Round "08"]
[TimeControl "180+2"]
[Date "2023.01.03"]
[WhiteClock "0:00:07"]
[BlackClock "0:00:08"]

1. d4 {[%clk 0:02:41]}  d5 {[%clk 0:02:59]} 2. Bf4 {[%clk 0:02:40]}  Nf6 {[%clk 0:02:59]} 3. e3 {[%clk 0:02:41]}  e6 {[%clk 0:02:56]} 4. Nd2 {[%clk 0:02:41]}  Bd6 {[%clk 0:02:56]} 5. Bg3 {[%clk 0:02:41]}  O-O {[%clk 0:02:50]} 6. Bd3 {[%clk 0:02:41]}  c5 {[%clk 0:02:50]} 7. c3 {[%clk 0:02:41]}  Qc7 {[%clk 0:02:48]} 8. Ngf3 {[%clk 0:02:39]}  Nbd7 {[%clk 0:02:47]} 9. Qe2 {[%clk 0:02:36]}  e5 {[%clk 0:02:47]} 10. dxe5 {[%clk 0:02:37]}  Nxe5 {[%clk 0:02:47]} 11. Nxe5 {[%clk 0:02:37]}  Bxe5 {[%clk 0:02:47]} 12. Bh4 {[%clk 0:02:38]}  Re8 {[%clk 0:02:24]} 13. Nf3 {[%clk 0:02:35]}  Bg4 {[%clk 0:02:24]} 14. h3 {[%clk 0:02:35]}  Bxf3 {[%clk 0:02:21]} 15. gxf3 {[%clk 0:02:27]}  c4 {[%clk 0:02:18]} 16. Bc2 {[%clk 0:02:25]}  d4 {[%clk 0:02:17]} 17. cxd4 {[%clk 0:02:22]}  Bxd4 {[%clk 0:02:17]} 18. O-O-O {[%clk 0:02:23]}  Qb6 {[%clk 0:01:44]} 19. Ba4 {[%clk 0:02:02]}  Re7 {[%clk 0:01:13]} 20. Qc2 {[%clk 0:02:01]}  Bc5 {[%clk 0:00:49]} 21. Kb1 {[%clk 0:01:49]}  Rc7 {[%clk 0:00:49]} 22. Qxc4 {[%clk 0:01:40]}  Bxe3 {[%clk 0:00:43]} 23. Qd3 {[%clk 0:01:33]}  Bc5 {[%clk 0:00:32]} 24. Bb3 {[%clk 0:01:25]}  Rf8 {[%clk 0:00:27]} 25. Rhg1 {[%clk 0:01:24]}  Rd7 {[%clk 0:00:26]} 26. Qf5 {[%clk 0:01:20]}  Rxd1+ {[%clk 0:00:26]} 27. Bxd1 {[%clk 0:01:20]}  Bd4 {[%clk 0:00:26]} 28. Bb3 {[%clk 0:01:18]}  Bxf2 {[%clk 0:00:24]} 29. Bxf2 {[%clk 0:00:57]}  Qxf2 {[%clk 0:00:24]} 30. Qg5 {[%clk 0:00:56]}  g6 {[%clk 0:00:23]} 31. Rc1 {[%clk 0:00:35]}  Qxf3 {[%clk 0:00:22]} 32. h4 {[%clk 0:00:34]}  Ne4 {[%clk 0:00:16]} 33. Qd5 {[%clk 0:00:29]}  Qf4 {[%clk 0:00:11]} 34. Rd1 {[%clk 0:00:20]}  Qxh4 {[%clk 0:00:06]} 35. Qxb7 {[%clk 0:00:20]}  Qf4 {[%clk 0:00:06]} 36. Qb4 {[%clk 0:00:17]}  Qf5 {[%clk 0:00:06]} 37. Ka1 {[%clk 0:00:16]}  Nf2 {[%clk 0:00:05]} 38. Rf1 {[%clk 0:00:14]}  Qe4 {[%clk 0:00:03]} 39. Qd2 {[%clk 0:00:10]}  Ng4 {[%clk 0:00:02]} 40. Re1 {[%clk 0:00:09]}  Qf3 {[%clk 0:00:03]} 41. Bd1 {[%clk 0:00:08]}  Qf2 {[%clk 0:00:03]} 42. Re2 {[%clk 0:00:07]}  Qf1 {[%clk 0:00:04]} 43. Re1 {[%clk 0:00:07]}  Qf5 {[%clk 0:00:04]} 44. Bc2 {[%clk 0:00:06]}  Qf2 {[%clk 0:00:04]} 45. Qc3 {[%clk 0:00:06]}  Nf6 {[%clk 0:00:02]} 46. Rd1 {[%clk 0:00:06]}  Qh4 {[%clk 0:00:03]} 47. Bd3 {[%clk 0:00:06]}  Qg5 {[%clk 0:00:04]} 48. Rf1 {[%clk 0:00:06]}  Nd5 {[%clk 0:00:04]} 49. Qd4 {[%clk 0:00:06]}  Ne3 {[%clk 0:00:04]} 50. Re1 {[%clk 0:00:06]}  Ng2 {[%clk 0:00:04]} 51. Rg1 {[%clk 0:00:06]}  Qe3 {[%clk 0:00:05]} 52. Qc3 {[%clk 0:00:05]}  Qxg1+ {[%clk 0:00:05]} 53. Bb1 {[%clk 0:00:06]}  Ne1 {[%clk 0:00:05]} 54. Qc1 {[%clk 0:00:05]}  Qf2 {[%clk 0:00:05]} 55. Qd1 {[%clk 0:00:05]}  Nf3 {[%clk 0:00:06]} 56. a3 {[%clk 0:00:05]}  h5 {[%clk 0:00:06]} 57. a4 {[%clk 0:00:05]}  h4 {[%clk 0:00:07]} 58. a5 {[%clk 0:00:06]}  h3 {[%clk 0:00:07]} 59. Qc2 {[%clk 0:00:06]}  Qxc2 {[%clk 0:00:07]} 60. Bxc2 {[%clk 0:00:06]}  h2 {[%clk 0:00:07]} 61. Be4 {[%clk 0:00:07]}  h1=Q+ {[%clk 0:00:08]} 0-1


[Site "https://www.chess.com"]

[Event "Titled Tuesday Blitz January 03 Late 2023"]
[White "Baskin, Robert"]
[Black "reevecanada"]
[WhiteFideId "24662402"]
[WhiteElo "2442"]
[BlackElo "2486"]
[Result "1/2-1/2"]
[Round "08"]
[TimeControl "180+2"]
[Date "2023.01.03"]
[WhiteClock "0:01:03"]
[BlackClock "0:01:19"]

1. c4 {[%clk 0:02:59]}  e5 {[%clk 0:02:58]} 2. g3 {[%clk 0:02:58]}  c6 {[%clk 0:02:57]} 3. Nf3 {[%clk 0:02:58]}  Bd6 {[%clk 0:02:52]} 4. d4 {[%clk 0:02:41]}  e4 {[%clk 0:02:49]} 5. Ng5 {[%clk 0:02:41]}  Qe7 {[%clk 0:02:37]} 6. c5 {[%clk 0:02:39]}  Bc7 {[%clk 0:02:34]} 7. Nc3 {[%clk 0:02:38]}  f5 {[%clk 0:02:33]} 8. Qb3 {[%clk 0:02:23]}  Nf6 {[%clk 0:02:30]} 9. h4 {[%clk 0:02:15]}  d5 {[%clk 0:02:28]} 10. cxd6 {[%clk 0:02:14]}  Bxd6 {[%clk 0:02:28]} 11. Be3 {[%clk 0:01:56]}  h6 {[%clk 0:02:21]} 12. Nh3 {[%clk 0:01:56]}  Be6 {[%clk 0:02:20]} 13. Qc2 {[%clk 0:01:56]}  Nd5 {[%clk 0:02:18]} 14. Nxd5 {[%clk 0:01:56]}  Bxd5 {[%clk 0:02:19]} 15. Nf4 {[%clk 0:01:56]}  Qf7 {[%clk 0:02:06]} 16. Bh3 {[%clk 0:01:53]}  O-O {[%clk 0:02:02]} 17. h5 {[%clk 0:01:42]}  Bb4+ {[%clk 0:02:00]} 18. Kf1 {[%clk 0:01:38]}  Nd7 {[%clk 0:01:57]} 19. Rg1 {[%clk 0:01:31]}  Nf6 {[%clk 0:01:52]} 20. Bxf5 {[%clk 0:01:31]}  Nxh5 {[%clk 0:01:52]} 21. Bg6 {[%clk 0:01:28]}  Qd7 {[%clk 0:01:31]} 22. Nxh5 {[%clk 0:01:13]}  Qh3+ {[%clk 0:01:27]} 23. Rg2 {[%clk 0:01:03]}  Qh1+ {[%clk 0:01:22]} 24. Rg1 {[%clk 0:01:03]}  Qh3+ {[%clk 0:01:19]} 25. Rg2 {[%clk 0:01:03]}  Qh1+ {[%clk 0:01:19]} 26. Rg1 {[%clk 0:01:03]}  Qh3+ {[%clk 0:01:19]} 1/2-1/2


[Site "https://www.chess.com"]

[Event "Titled Tuesday Blitz January 03 Late 2023"]
[White "Di Berardino, Diego Rafael"]
[Black "Yeritsyan, Hayk"]
[WhiteFideId "2105446"]
[BlackFideId "13307320"]
[WhiteElo "2479"]
[BlackElo "2241"]
[Result "1-0"]
[Round "08"]
[TimeControl "180+2"]
[Date "2023.01.03"]
[WhiteClock "0:00:07"]
[BlackClock "0:00:10"]

1. e4 {[%clk 0:03:00]}  c6 {[%clk 0:03:00]} 2. d4 {[%clk 0:03:00]}  d5 {[%clk 0:03:00]} 3. exd5 {[%clk 0:03:00]}  cxd5 {[%clk 0:03:01]} 4. c4 {[%clk 0:03:01]}  Nf6 {[%clk 0:03:01]} 5. Nc3 {[%clk 0:03:02]}  Nc6 {[%clk 0:03:02]} 6. Bg5 {[%clk 0:03:02]}  e6 {[%clk 0:02:55]} 7. Nf3 {[%clk 0:03:01]}  Be7 {[%clk 0:02:54]} 8. c5 {[%clk 0:03:01]}  O-O {[%clk 0:02:44]} 9. Bb5 {[%clk 0:03:01]}  Bd7 {[%clk 0:02:44]} 10. O-O {[%clk 0:02:53]}  Nb4 {[%clk 0:02:33]} 11. Bxd7 {[%clk 0:02:40]}  Nxd7 {[%clk 0:02:29]} 12. Bf4 {[%clk 0:02:31]}  a6 {[%clk 0:02:25]} 13. Re1 {[%clk 0:02:29]}  Bf6 {[%clk 0:02:23]} 14. a3 {[%clk 0:02:21]}  Nc6 {[%clk 0:02:22]} 15. b4 {[%clk 0:02:21]}  Re8 {[%clk 0:02:17]} 16. Rb1 {[%clk 0:02:08]}  Nf8 {[%clk 0:01:44]} 17. h3 {[%clk 0:02:00]}  Qd7 {[%clk 0:01:41]} 18. Bg3 {[%clk 0:01:51]}  Bd8 {[%clk 0:01:41]} 19. a4 {[%clk 0:01:48]}  Bc7 {[%clk 0:01:39]} 20. b5 {[%clk 0:01:46]}  Na5 {[%clk 0:01:35]} 21. Bxc7 {[%clk 0:01:14]}  Qxc7 {[%clk 0:01:34]} 22. Ne5 {[%clk 0:00:51]}  Nd7 {[%clk 0:01:17]} 23. Nd3 {[%clk 0:00:31]}  Nc4 {[%clk 0:01:14]} 24. bxa6 {[%clk 0:00:30]}  bxa6 {[%clk 0:00:59]} 25. Rb4 {[%clk 0:00:28]}  Nb8 {[%clk 0:00:49]} 26. Nxd5 {[%clk 0:00:25]}  Qd8 {[%clk 0:00:44]} 27. Rxc4 {[%clk 0:00:09]}  Qxd5 {[%clk 0:00:40]} 28. Qc2 {[%clk 0:00:06]}  Nc6 {[%clk 0:00:38]} 29. Nb4 {[%clk 0:00:07]}  Nxb4 {[%clk 0:00:20]} 30. Rxb4 {[%clk 0:00:08]}  e5 {[%clk 0:00:18]} 31. Rd1 {[%clk 0:00:06]}  exd4 {[%clk 0:00:17]} 32. Rbxd4 {[%clk 0:00:07]}  Qc6 {[%clk 0:00:16]} 33. Rd6 {[%clk 0:00:07]}  Qc7 {[%clk 0:00:16]} 34. c6 {[%clk 0:00:07]}  h6 {[%clk 0:00:16]} 35. Qc4 {[%clk 0:00:07]}  Re7 {[%clk 0:00:14]} 36. Rd7 {[%clk 0:00:06]}  Qe5 {[%clk 0:00:13]} 37. Rxe7 {[%clk 0:00:04]}  Qxe7 {[%clk 0:00:14]} 38. c7 {[%clk 0:00:03]}  Rc8 {[%clk 0:00:12]} 39. Rc1 {[%clk 0:00:03]}  Qd7 {[%clk 0:00:12]} 40. a5 {[%clk 0:00:03]}  Qd6 {[%clk 0:00:10]} 41. Qc6 {[%clk 0:00:02]}  Qxc6 {[%clk 0:00:10]} 42. Rxc6 {[%clk 0:00:03]}  Kf8 {[%clk 0:00:09]} 43. g3 {[%clk 0:00:04]}  Ke7 {[%clk 0:00:09]} 44. h4 {[%clk 0:00:04]}  Kd7 {[%clk 0:00:10]} 45. Rxa6 {[%clk 0:00:05]}  Rxc7 {[%clk 0:00:10]} 46. Rb6 {[%clk 0:00:05]}  Rc1+ {[%clk 0:00:10]} 47. Kg2 {[%clk 0:00:06]}  Ra1 {[%clk 0:00:10]} 48. a6 {[%clk 0:00:06]}  Ke7 {[%clk 0:00:10]} 49. Rb7+ {[%clk 0:00:07]}  Kf6 {[%clk 0:00:10]} 50. a7 {[%clk 0:00:07]}  g6 {[%clk 0:00:10]} 51. Rc7 {[%clk 0:00:06]}  h5 {[%clk 0:00:10]} 52. Kf3 {[%clk 0:00:06]}  Ra4 {[%clk 0:00:09]} 53. Ke3 {[%clk 0:00:06]}  Ke6 {[%clk 0:00:08]} 54. Rb7 {[%clk 0:00:06]}  Kf6 {[%clk 0:00:09]} 55. Kd3 {[%clk 0:00:06]}  Ke6 {[%clk 0:00:08]} 56. Kc3 {[%clk 0:00:06]}  Ra1 {[%clk 0:00:08]} 57. Kc4 {[%clk 0:00:05]}  Kf6 {[%clk 0:00:06]} 58. Kc5 {[%clk 0:00:05]}  Ke6 {[%clk 0:00:06]} 59. Kc6 {[%clk 0:00:05]}  f6 {[%clk 0:00:04]} 60. Kc7 {[%clk 0:00:05]}  g5 {[%clk 0:00:04]} 61. Kb8 {[%clk 0:00:04]}  gxh4 {[%clk 0:00:03]} 62. gxh4 {[%clk 0:00:05]}  Kf5 {[%clk 0:00:04]} 63. a8=Q {[%clk 0:00:05]}  Rxa8+ {[%clk 0:00:03]} 64. Kxa8 {[%clk 0:00:06]}  Kg4 {[%clk 0:00:04]} 65. Rf7 {[%clk 0:00:04]}  Kxh4 {[%clk 0:00:02]} 66. Rxf6 {[%clk 0:00:04]}  Kg5 {[%clk 0:00:03]} 67. Rf8 {[%clk 0:00:04]}  h4 {[%clk 0:00:04]} 68. f4+ {[%clk 0:00:04]}  Kg4 {[%clk 0:00:04]} 69. Rh8 {[%clk 0:00:04]}  h3 {[%clk 0:00:05]} 70. f5 {[%clk 0:00:04]}  Kxf5 {[%clk 0:00:05]} 71. Rxh3 {[%clk 0:00:04]}  Kg4 {[%clk 0:00:06]} 72. Rb3 {[%clk 0:00:04]}  Kf5 {[%clk 0:00:07]} 73. Kb7 {[%clk 0:00:05]}  Ke4 {[%clk 0:00:08]} 74. Kc6 {[%clk 0:00:05]}  Kd4 {[%clk 0:00:09]} 75. Rb4+ {[%clk 0:00:06]}  Kc3 {[%clk 0:00:09]} 76. Kc5 {[%clk 0:00:07]}  Kc2 {[%clk 0:00:09]} 77. Rd4 {[%clk 0:00:07]}  Kc1 {[%clk 0:00:10]} 78. Kc4 {[%clk 0:00:07]} 1-0


[Site "https://www.chess.com"]

[Event "Titled Tuesday Blitz January 03 Late 2023"]
[White "Ozer, Omer Faruk"]
[Black "Manukian, Artak"]
[WhiteFideId "6354564"]
[BlackFideId "13301373"]
[WhiteElo "2360"]
[BlackElo "2196"]
[Result "1-0"]
[Round "08"]
[TimeControl "180+2"]
[Date "2023.01.03"]
[WhiteClock "0:00:17"]
[BlackClock "0:00:13"]

1. e4 {[%clk 0:03:00]}  c6 {[%clk 0:03:00]} 2. d4 {[%clk 0:03:00]}  d5 {[%clk 0:03:01]} 3. Bd3 {[%clk 0:02:59]}  dxe4 {[%clk 0:02:59]} 4. Bxe4 {[%clk 0:03:00]}  Nf6 {[%clk 0:03:00]} 5. Bf3 {[%clk 0:03:00]}  Bf5 {[%clk 0:03:00]} 6. Ne2 {[%clk 0:02:59]}  e6 {[%clk 0:03:00]} 7. O-O {[%clk 0:02:59]}  Bd6 {[%clk 0:03:01]} 8. c4 {[%clk 0:02:58]}  O-O {[%clk 0:03:00]} 9. Nbc3 {[%clk 0:02:58]}  Nbd7 {[%clk 0:02:59]} 10. b3 {[%clk 0:02:56]}  Qc7 {[%clk 0:02:59]} 11. Ng3 {[%clk 0:02:55]}  Bg6 {[%clk 0:02:53]} 12. Bb2 {[%clk 0:02:52]}  Rad8 {[%clk 0:02:43]} 13. Qe2 {[%clk 0:02:51]}  Rfe8 {[%clk 0:02:42]} 14. Rac1 {[%clk 0:02:46]}  e5 {[%clk 0:02:42]} 15. d5 {[%clk 0:02:46]}  e4 {[%clk 0:02:36]} 16. Bg4 {[%clk 0:02:44]}  Nxg4 {[%clk 0:02:31]} 17. Qxg4 {[%clk 0:02:43]}  Ne5 {[%clk 0:02:31]} 18. Qh4 {[%clk 0:02:38]}  Nd3 {[%clk 0:02:30]} 19. Rc2 {[%clk 0:02:34]}  Nxb2 {[%clk 0:02:20]} 20. Rxb2 {[%clk 0:02:35]}  e3 {[%clk 0:02:03]} 21. fxe3 {[%clk 0:02:31]}  Rxe3 {[%clk 0:02:03]} 22. Nce4 {[%clk 0:02:29]}  Bxe4 {[%clk 0:01:56]} 23. Nxe4 {[%clk 0:02:30]}  Bxh2+ {[%clk 0:01:53]} 24. Kh1 {[%clk 0:02:29]}  Be5 {[%clk 0:01:39]} 25. Rbf2 {[%clk 0:02:16]}  f6 {[%clk 0:01:33]} 26. Qg4 {[%clk 0:01:46]}  Kh8 {[%clk 0:01:20]} 27. dxc6 {[%clk 0:01:39]}  Qxc6 {[%clk 0:01:14]} 28. Ng5 {[%clk 0:01:37]}  Qe8 {[%clk 0:00:44]} 29. Ne6 {[%clk 0:01:28]}  Rd7 {[%clk 0:00:41]} 30. Rf3 {[%clk 0:00:56]}  Rxf3 {[%clk 0:00:35]} 31. gxf3 {[%clk 0:00:57]}  Re7 {[%clk 0:00:34]} 32. Nc5 {[%clk 0:00:55]}  Qg6 {[%clk 0:00:28]} 33. Qxg6 {[%clk 0:00:31]}  hxg6 {[%clk 0:00:29]} 34. Rd1 {[%clk 0:00:30]}  g5 {[%clk 0:00:25]} 35. Kg2 {[%clk 0:00:28]}  Kh7 {[%clk 0:00:24]} 36. Rd8 {[%clk 0:00:26]}  Kg6 {[%clk 0:00:20]} 37. Nd7 {[%clk 0:00:26]}  Bc7 {[%clk 0:00:18]} 38. Nf8+ {[%clk 0:00:26]}  Kf7 {[%clk 0:00:18]} 39. Ra8 {[%clk 0:00:25]}  Bb6 {[%clk 0:00:16]} 40. Nh7 {[%clk 0:00:22]}  Re2+ {[%clk 0:00:16]} 41. Kg3 {[%clk 0:00:22]}  Rxa2 {[%clk 0:00:16]} 42. Kg4 {[%clk 0:00:19]}  Rg2+ {[%clk 0:00:14]} 43. Kf5 {[%clk 0:00:18]}  g6+ {[%clk 0:00:13]} 44. Ke4 {[%clk 0:00:19]}  Kg7 {[%clk 0:00:13]} 45. Nf8 {[%clk 0:00:18]}  Re2+ {[%clk 0:00:13]} 46. Kd5 {[%clk 0:00:18]}  Re7 {[%clk 0:00:13]} 47. Ne6+ {[%clk 0:00:17]}  Kf7 {[%clk 0:00:13]} 48. Rf8# {[%clk 0:00:17]} 1-0


[Site "https://www.chess.com"]

[Event "Titled Tuesday Blitz January 03 Late 2023"]
[White "Aldokhin, Ivan"]
[Black "Sos Andreu, Eric"]
[WhiteFideId "24115720"]
[BlackFideId "22247017"]
[WhiteElo "2413"]
[BlackElo "2352"]
[Result "0-1"]
[Round "08"]
[TimeControl "180+2"]
[Date "2023.01.03"]
[WhiteClock "0:00:03"]
[BlackClock "0:00:09"]

1. g3 {[%clk 0:00:48]}  Nf6 {[%clk 0:02:59]} 2. Bg2 {[%clk 0:00:44]}  g6 {[%clk 0:02:59]} 3. d3 {[%clk 0:00:44]}  Bg7 {[%clk 0:02:59]} 4. e4 {[%clk 0:00:44]}  O-O {[%clk 0:03:00]} 5. Nf3 {[%clk 0:00:43]}  d6 {[%clk 0:03:00]} 6. O-O {[%clk 0:00:44]}  c5 {[%clk 0:03:01]} 7. Nc3 {[%clk 0:00:44]}  Nc6 {[%clk 0:03:01]} 8. Re1 {[%clk 0:00:44]}  Ne8 {[%clk 0:03:00]} 9. Bg5 {[%clk 0:00:43]}  Nc7 {[%clk 0:02:58]} 10. Qd2 {[%clk 0:00:43]}  Re8 {[%clk 0:02:57]} 11. Bh6 {[%clk 0:00:42]}  Bh8 {[%clk 0:02:57]} 12. a4 {[%clk 0:00:43]}  Rb8 {[%clk 0:02:58]} 13. Re2 {[%clk 0:00:38]}  Bg4 {[%clk 0:02:56]} 14. Ree1 {[%clk 0:00:30]}  Qd7 {[%clk 0:02:49]} 15. Bh1 {[%clk 0:00:21]}  a6 {[%clk 0:02:48]} 16. Rad1 {[%clk 0:00:20]}  Nd4 {[%clk 0:02:44]} 17. Nxd4 {[%clk 0:00:14]}  Bxd1 {[%clk 0:02:43]} 18. Nxd1 {[%clk 0:00:10]}  cxd4 {[%clk 0:02:42]} 19. f4 {[%clk 0:00:10]}  e6 {[%clk 0:02:34]} 20. Nf2 {[%clk 0:00:09]}  f5 {[%clk 0:02:31]} 21. g4 {[%clk 0:00:07]}  Bg7 {[%clk 0:02:30]} 22. Bg5 {[%clk 0:00:06]}  Qf7 {[%clk 0:02:11]} 23. Rf1 {[%clk 0:00:05]}  b5 {[%clk 0:02:07]} 24. axb5 {[%clk 0:00:05]}  Rxb5 {[%clk 0:02:08]} 25. b3 {[%clk 0:00:05]}  Rc5 {[%clk 0:02:06]} 26. b4 {[%clk 0:00:04]}  Rb5 {[%clk 0:02:01]} 27. exf5 {[%clk 0:00:04]}  gxf5 {[%clk 0:01:58]} 28. Bc6 {[%clk 0:00:04]}  Rbb8 {[%clk 0:01:56]} 29. Bxe8 {[%clk 0:00:04]}  Qxe8 {[%clk 0:01:54]} 30. Qe2 {[%clk 0:00:05]}  Qg6 {[%clk 0:01:50]} 31. Kh1 {[%clk 0:00:04]}  h6 {[%clk 0:01:46]} 32. Bh4 {[%clk 0:00:04]}  fxg4 {[%clk 0:01:44]} 33. Nxg4 {[%clk 0:00:04]}  Qf5 {[%clk 0:01:41]} 34. Rg1 {[%clk 0:00:04]}  Kh7 {[%clk 0:01:41]} 35. Qe4 {[%clk 0:00:02]}  Qxe4+ {[%clk 0:01:31]} 36. dxe4 {[%clk 0:00:03]}  Ne8 {[%clk 0:01:29]} 37. e5 {[%clk 0:00:03]}  dxe5 {[%clk 0:01:22]} 38. fxe5 {[%clk 0:00:04]}  Rxb4 {[%clk 0:01:14]} 39. Bf6 {[%clk 0:00:04]}  h5 {[%clk 0:01:01]} 40. Bxg7 {[%clk 0:00:03]}  hxg4 {[%clk 0:00:58]} 41. Bf8 {[%clk 0:00:02]}  Rb2 {[%clk 0:00:55]} 42. Rxg4 {[%clk 0:00:02]}  Rxc2 {[%clk 0:00:54]} 43. Rxd4 {[%clk 0:00:03]}  Kg6 {[%clk 0:00:40]} 44. Rd8 {[%clk 0:00:03]}  Kf7 {[%clk 0:00:40]} 45. Bd6 {[%clk 0:00:03]}  Ng7 {[%clk 0:00:29]} 46. Rd7+ {[%clk 0:00:03]}  Kg6 {[%clk 0:00:28]} 47. Ra7 {[%clk 0:00:03]}  Nh5 {[%clk 0:00:22]} 48. Rxa6 {[%clk 0:00:03]}  Nf4 {[%clk 0:00:23]} 49. Kg1 {[%clk 0:00:03]}  Rg2+ {[%clk 0:00:21]} 50. Kf1 {[%clk 0:00:03]}  Rxh2 {[%clk 0:00:21]} 51. Ra8 {[%clk 0:00:04]}  Kf5 {[%clk 0:00:21]} 52. Rf8+ {[%clk 0:00:04]}  Ke4 {[%clk 0:00:21]} 53. Bc5 {[%clk 0:00:04]}  Kf3 {[%clk 0:00:18]} 54. Ke1 {[%clk 0:00:04]}  Ke4 {[%clk 0:00:16]} 55. Kd1 {[%clk 0:00:04]}  Nd3 {[%clk 0:00:15]} 56. Bd6 {[%clk 0:00:03]}  Ra2 {[%clk 0:00:14]} 57. Rh8 {[%clk 0:00:02]}  Ke3 {[%clk 0:00:11]} 58. Rh3+ {[%clk 0:00:03]}  Ke4 {[%clk 0:00:11]} 59. Bc7 {[%clk 0:00:03]}  Nf2+ {[%clk 0:00:11]} 60. Kc1 {[%clk 0:00:02]}  Nxh3 {[%clk 0:00:12]} 61. Kb1 {[%clk 0:00:03]}  Re2 {[%clk 0:00:09]} 0-1


[Site "https://www.chess.com"]

[Event "Titled Tuesday Blitz January 03 Late 2023"]
[White "Ballester Llagaria, Luis Eduardo"]
[Black "Pein, Jonathan"]
[WhiteFideId "2297620"]
[BlackFideId "417092"]
[WhiteElo "2298"]
[BlackElo "2265"]
[Result "1-0"]
[Round "08"]
[TimeControl "180+2"]
[Date "2023.01.03"]
[WhiteClock "0:01:29"]
[BlackClock "0:00:14"]

1. e4 {[%clk 0:02:58]}  e5 {[%clk 0:03:00]} 2. Nf3 {[%clk 0:02:58]}  d6 {[%clk 0:03:00]} 3. Nc3 {[%clk 0:02:59]}  Nf6 {[%clk 0:03:00]} 4. d4 {[%clk 0:02:59]}  exd4 {[%clk 0:03:01]} 5. Nxd4 {[%clk 0:02:59]}  g6 {[%clk 0:03:01]} 6. Bf4 {[%clk 0:02:53]}  Bg7 {[%clk 0:03:01]} 7. Qd2 {[%clk 0:02:54]}  O-O {[%clk 0:02:57]} 8. O-O-O {[%clk 0:02:53]}  Re8 {[%clk 0:02:57]} 9. f3 {[%clk 0:02:54]}  Nc6 {[%clk 0:02:57]} 10. Nxc6 {[%clk 0:02:41]}  bxc6 {[%clk 0:02:57]} 11. Bc4 {[%clk 0:02:39]}  Be6 {[%clk 0:02:57]} 12. Bb3 {[%clk 0:02:34]}  a5 {[%clk 0:02:53]} 13. Bh6 {[%clk 0:02:32]}  Bh8 {[%clk 0:02:53]} 14. h4 {[%clk 0:02:32]}  Nd7 {[%clk 0:02:52]} 15. h5 {[%clk 0:02:27]}  Nc5 {[%clk 0:02:41]} 16. Bg5 {[%clk 0:02:15]}  Qb8 {[%clk 0:02:38]} 17. Qf4 {[%clk 0:01:59]}  a4 {[%clk 0:02:11]} 18. hxg6 {[%clk 0:01:59]}  axb3 {[%clk 0:01:44]} 19. gxf7+ {[%clk 0:01:37]}  Bxf7 {[%clk 0:01:42]} 20. Rxh7 {[%clk 0:01:36]}  Bg6 {[%clk 0:00:22]} 21. Rxh8+ {[%clk 0:01:30]}  Kxh8 {[%clk 0:00:23]} 22. Qf6+ {[%clk 0:01:30]}  Kg8 {[%clk 0:00:21]} 23. Qxg6+ {[%clk 0:01:30]}  Kf8 {[%clk 0:00:22]} 24. Qf6+ {[%clk 0:01:30]}  Kg8 {[%clk 0:00:22]} 25. Rh1 {[%clk 0:01:28]}  Nd3+ {[%clk 0:00:17]} 26. cxd3 {[%clk 0:01:29]}  bxa2 {[%clk 0:00:14]} 27. Rh8# {[%clk 0:01:29]} 1-0


[Site "https://www.chess.com"]

[Event "Titled Tuesday Blitz January 03 Late 2023"]
[White "Yaran, Siar"]
[Black "Novikova, Galina"]
[WhiteFideId "6323006"]
[BlackFideId "4157095"]
[WhiteElo "2288"]
[BlackElo "2073"]
[Result "1-0"]
[Round "08"]
[TimeControl "180+2"]
[Date "2023.01.03"]
[WhiteClock "0:00:12"]
[BlackClock "0:00:01"]

1. d4 {[%clk 0:03:00]}  e6 {[%clk 0:03:00]} 2. c4 {[%clk 0:03:00]}  f5 {[%clk 0:03:00]} 3. Nc3 {[%clk 0:03:00]}  Nf6 {[%clk 0:03:01]} 4. Nf3 {[%clk 0:02:58]}  Be7 {[%clk 0:03:02]} 5. e3 {[%clk 0:02:58]}  d6 {[%clk 0:03:01]} 6. b3 {[%clk 0:02:58]}  O-O {[%clk 0:03:00]} 7. Bb2 {[%clk 0:02:58]}  Ne4 {[%clk 0:02:53]} 8. Bd3 {[%clk 0:02:57]}  Nxc3 {[%clk 0:02:43]} 9. Bxc3 {[%clk 0:02:57]}  Nd7 {[%clk 0:02:44]} 10. Qc2 {[%clk 0:02:55]}  Nf6 {[%clk 0:02:43]} 11. O-O {[%clk 0:02:44]}  Qe8 {[%clk 0:02:42]} 12. Nd2 {[%clk 0:02:31]}  Qh5 {[%clk 0:02:38]} 13. f3 {[%clk 0:02:31]}  Qg5 {[%clk 0:02:18]} 14. Rae1 {[%clk 0:02:29]}  b6 {[%clk 0:02:04]} 15. e4 {[%clk 0:02:08]}  Bd8 {[%clk 0:02:04]} 16. f4 {[%clk 0:02:01]}  Qh5 {[%clk 0:01:57]} 17. e5 {[%clk 0:01:57]}  dxe5 {[%clk 0:01:51]} 18. fxe5 {[%clk 0:01:57]}  Ng4 {[%clk 0:01:39]} 19. h3 {[%clk 0:01:56]}  Nh6 {[%clk 0:01:39]} 20. d5 {[%clk 0:01:54]}  Kh8 {[%clk 0:01:16]} 21. Nf3 {[%clk 0:01:52]}  Be7 {[%clk 0:01:06]} 22. Nd4 {[%clk 0:01:48]}  Bc5 {[%clk 0:01:05]} 23. Kh1 {[%clk 0:01:48]}  Bxd4 {[%clk 0:00:57]} 24. Bxd4 {[%clk 0:01:49]}  Qh4 {[%clk 0:00:45]} 25. Qf2 {[%clk 0:01:45]}  Qe7 {[%clk 0:00:42]} 26. Re3 {[%clk 0:00:48]}  Bd7 {[%clk 0:00:39]} 27. Rg3 {[%clk 0:00:41]}  Rf7 {[%clk 0:00:39]} 28. Qf4 {[%clk 0:00:39]}  a5 {[%clk 0:00:36]} 29. d6 {[%clk 0:00:38]}  Qd8 {[%clk 0:00:33]} 30. Rff3 {[%clk 0:00:35]}  c5 {[%clk 0:00:30]} 31. Bc3 {[%clk 0:00:31]}  Bc6 {[%clk 0:00:30]} 32. Re3 {[%clk 0:00:26]}  a4 {[%clk 0:00:25]} 33. b4 {[%clk 0:00:26]}  Qf8 {[%clk 0:00:21]} 34. b5 {[%clk 0:00:23]}  Bb7 {[%clk 0:00:19]} 35. a3 {[%clk 0:00:23]}  Rb8 {[%clk 0:00:19]} 36. Rg5 {[%clk 0:00:23]}  Rc8 {[%clk 0:00:14]} 37. Reg3 {[%clk 0:00:23]}  Rd8 {[%clk 0:00:13]} 38. Rh5 {[%clk 0:00:23]}  Rdd7 {[%clk 0:00:13]} 39. Kh2 {[%clk 0:00:23]}  Rd8 {[%clk 0:00:12]} 40. Rgg5 {[%clk 0:00:21]}  Rdd7 {[%clk 0:00:12]} 41. Qh4 {[%clk 0:00:20]}  Rd8 {[%clk 0:00:10]} 42. Bd2 {[%clk 0:00:20]}  f4 {[%clk 0:00:08]} 43. Rxg7 {[%clk 0:00:18]}  Qxg7 {[%clk 0:00:05]} 44. Qxd8+ {[%clk 0:00:17]}  Rf8 {[%clk 0:00:04]} 45. Qg5 {[%clk 0:00:18]}  Rg8 {[%clk 0:00:02]} 46. Bxf4 {[%clk 0:00:16]}  Qf7 {[%clk 0:00:01]} 47. Rxh6 {[%clk 0:00:12]} 1-0


[Site "https://www.chess.com"]